bitfinex/quotes_ETHUSD_20250620
["timestamp","ask_amount","ask_price","bid_price","bid_amount"]
[1750435049222,10.0585,2495.8,2495.7,4.00685153]
[1750435049423,6.817,2495.8,2495.7,4.00685153]
[1750435050194,6.8755,2495.8,2495.7,4.00685153]
[1750435050392,0.8554,2496.1,2496.0,4.00641025]
[1750435050585,12.57188902,2496.1,2496.0,4.00641025]
[1750435050806,10.0,2496.1,2496.0,4.00641025]
[1750435051546,0.0585,2496.6,2496.5,4.00560785]
[1750435051705,0.0585,2496.9,2496.8,4.00512656]
[1750435051912,7.6109,2497.0,2496.9,4.00496615]
[1750435052111,7.6109,2497.0,2496.1,0.7836]
[1750435052112,10.0,2496.9,2496.5,4.0055461]
[1750435052295,0.0585,2496.7,2496.1,4.78983157]
[1750435052623,6.82,2496.8,2496.7,4.00528697]
[1750435052830,6.821,2496.8,2496.6,4.00538433]
[1750435053038,0.0585,2496.6,2496.5,4.00552359]
[1750435053219,10.0585,2496.5,2496.2,4.00604706]
[1750435053421,10.0,2496.5,2496.4,4.0057683]
[1750435053621,16.822,2496.8,2496.7,4.00528697]
[1750435053933,10.0,2496.7,2496.4,4.00573173]
[1750435054116,10.0,2496.5,2496.3,4.00580577]
[1750435054317,10.0585,2496.5,2496.4,4.0057683]
[1750435054519,6.823,2496.7,2496.6,4.00533171]
[1750435055017,6.8815,2496.7,2496.6,4.00533171]
[1750435055205,0.0585,2496.6,2496.2,4.00608925]
[1750435055406,0.0585,2496.6,2495.6,9.5032]
[1750435055407,0.0585,2496.3,2495.6,9.5032]
[1750435055612,0.0585,2496.3,2496.2,4.00608925]
[1750435055815,16.8805,2496.3,2496.2,4.00608925]
[1750435056610,10.0,2496.3,2496.2,4.00608925]
[1750435056809,16.822,2496.3,2496.2,4.00608925]
[1750435057015,16.8805,2496.3,2496.2,4.00608925]
[1750435057209,0.0585,2496.2,2496.1,4.00611336]
[1750435058906,0.0585,2496.2,2496.0,4.00633705]
[1750435059107,0.0585,2496.2,2496.1,4.00624974]
[1750435059844,10.0585,2496.2,2496.1,4.00624974]
[1750435061149,10.0,2496.2,2496.1,4.00624974]
[1750435064029,10.0606,2496.2,2496.1,4.00624974]
[1750435064235,10.0,2496.2,2496.1,4.00624974]
[1750435066248,0.8127,2496.7,2496.5,4.00549924]
[1750435066560,0.0606,2496.5,2496.4,4.00573032]
[1750435067052,0.0606,2496.5,2496.0,0.7816]
[1750435067235,10.0,2496.3,2496.2,4.00599057]
[1750435067551,10.0606,2496.3,2496.2,4.00599057]
[1750435068044,10.0,2496.3,2496.2,4.00599057]
[1750435068753,10.0606,2496.3,2496.2,4.00599057]
[1750435069067,0.0606,2496.3,2496.2,4.00599057]
[1750435069910,10.0,2496.4,2496.3,4.00592877]
[1750435070107,10.0606,2496.4,2496.3,4.00592877]
[1750435071422,11.74536,2496.4,2496.3,4.00592877]
[1750435071824,11.74536,2496.4,2495.7,0.7972]
[1750435072159,6.8426,2496.3,2496.2,4.00606295]
[1750435072365,8.695336,2496.3,2496.2,4.00606295]
[1750435073155,0.0606,2496.3,2496.2,4.00606295]
[1750435073324,6.8386,2496.3,2496.2,4.00606295]
[1750435074578,10.0606,2496.6,2496.5,4.00560785]
[1750435074729,10.0606,2496.6,2496.4,4.00575426]
[1750435074730,0.0606,2496.5,2496.4,4.00575426]
[1750435075062,7.20776686,2496.5,2496.4,4.00575426]
[1750435075470,0.0606,2496.4,2496.3,4.00584694]
[1750435075667,0.0606,2496.4,2496.2,4.00601397]
[1750435075982,0.0606,2496.3,2495.7,0.7972]
[1750435076132,10.0,2496.2,2496.1,4.00612403]
[1750435076332,10.0606,2496.2,2496.1,4.00612403]
[1750435076749,10.43458935,2496.2,2496.1,4.00612403]
[1750435077264,0.0606,2496.5,2496.4,4.0057683]
[1750435077425,17.20857783,2496.5,2496.4,4.0057683]
[1750435077625,17.43296379,2496.5,2496.4,4.0057683]
[1750435078251,0.0606,2496.4,2496.3,4.00582981]
[1750435078446,0.65892098,2496.4,2496.3,4.00582981]
[1750435078661,0.65886364,2496.4,2496.3,4.00582981]
[1750435078868,0.65886587,2496.4,2496.3,4.00582981]
[1750435079266,1.96763629,2496.4,2495.7,4.80408255]
[1750435079554,0.0606,2496.2,2495.8,4.04679343]
[1750435079874,0.37391432,2496.2,2496.0,4.00632134]
[1750435080080,0.0606,2496.1,2496.0,4.00632134]
[1750435080692,0.0606,2496.0,2495.8,4.00663351]
[1750435080990,0.0606,2495.9,2495.7,4.00680924]
[1750435081149,0.0606,2495.9,2495.5,4.00718615]
[1750435081350,0.0606,2495.8,2495.7,4.00687814]
[1750435081657,0.0606,2495.8,2495.2,2.65554227]
[1750435081658,0.0606,2495.7,2495.6,4.00694155]
[1750435082004,7.14786869,2495.7,2495.6,4.00694155]
[1750435082171,7.14769801,2495.7,2495.6,4.00694155]
[1750435082706,7.5847,2496.3,2495.6,1.61971318]
[1750435082851,17.5847,2496.3,2496.2,4.00608925]
[1750435083208,0.2848395,2496.3,2496.2,4.00608925]
[1750435083372,17.37200003,2496.3,2496.2,4.00608925]
[1750435083754,0.0606,2496.2,2495.5,4.00718853]
[1750435084059,0.0606,2496.0,2495.9,4.00650782]
[1750435084494,0.0606,2496.0,2495.8,4.00668099]
[1750435084696,7.5879,2496.1,2495.9,4.00657077]
[1750435084852,0.0606,2496.0,2495.8,4.0066609]
[1750435085053,0.0606,2496.0,2495.9,4.00657077]
[1750435085494,7.5879,2496.1,2495.8,4.00666083]
[1750435085697,7.5879,2496.1,2495.7,4.00682725]
[1750435085698,0.0606,2495.9,2495.7,4.00680575]
[1750435085900,0.37392912,2495.9,2495.8,4.00671911]
[1750435086199,0.43452912,2495.9,2495.8,4.00671911]
[1750435086757,0.43453432,2495.9,2495.8,4.00671911]
[1750435087090,10.43453432,2495.9,2495.8,4.00671911]
[1750435087495,10.0606,2495.8,2495.7,4.0068096]
[1750435088277,6.8352,2495.9,2495.8,4.0067313]
[1750435088487,16.8352,2495.9,2495.8,4.0067313]
[1750435089692,0.0612,2495.7,2495.6,4.0069458]
[1750435089899,6.8352,2495.7,2495.6,4.0069458]
[1750435090455,10.0612,2495.6,2495.4,4.00736414]
[1750435090658,0.0612,2495.5,2495.4,4.00736414]
[1750435091619,6.8352,2495.7,2495.6,4.00705241]
[1750435092185,6.774,2495.7,2495.6,4.00705241]
[1750435092394,6.8352,2495.7,2495.6,4.00705241]
[1750435094759,12.41,2496.0,2495.7,4.00673918]
[1750435094962,10.0612,2495.8,2495.7,4.00673918]
[1750435095668,10.0612,2495.8,2495.6,4.00696906]
[1750435095669,0.0612,2495.7,2495.6,4.00696906]
[1750435097199,2.4712,2495.7,2495.6,4.00696906]
[1750435097589,16.8352,2495.7,2495.6,4.00696906]
[1750435104623,16.774,2495.7,2495.6,4.00696906]
[1750435104936,16.773,2495.7,2495.6,4.00696906]
[1750435106298,8.0312,2496.4,2496.3,4.00592877]
[1750435106632,0.0612,2496.4,2496.3,4.00592877]
[1750435106858,7.20710879,2496.4,2496.3,4.00592877]
[1750435106987,7.20710879,2496.4,2496.2,4.00599721]
[1750435107186,0.0612,2496.3,2496.2,4.00599721]
[1750435108121,10.0,2496.3,2496.1,4.00619873]
[1750435108336,0.0612,2496.2,2496.1,4.00619873]
[1750435109640,6.8332,2496.2,2496.1,4.00619873]
[1750435109840,6.772,2496.2,2496.1,4.00619873]
[1750435110335,0.0612,2496.4,2496.3,4.00592877]
[1750435110637,0.37285579,2496.4,2496.3,4.00592877]
[1750435110842,6.772,2496.4,2496.3,0.8012018]
[1750435110988,10.0,2496.6,2496.1,4.00624974]
[1750435111189,7.20623792,2496.5,2496.4,4.0057683]
[1750435111391,6.8332,2496.5,2496.4,4.0057683]
[1750435112045,0.0612,2496.3,2496.0,4.0062934]
[1750435112338,0.7645,2496.4,2496.0,4.0062934]
[1750435112339,9.70444762,2496.1,2496.0,4.00627578]
[1750435113924,11.29079238,2496.1,2495.8,4.00665462]
[1750435114241,0.0612,2496.0,2495.9,4.00657077]
[1750435114422,6.771,2496.0,2495.9,4.00657077]
[1750435114723,6.8322,2496.0,2495.9,4.00657077]
[1750435115987,10.0612,2496.3,2496.1,4.00618664]
[1750435116208,19.71174018,2496.2,2496.1,4.00618664]
[1750435116737,19.65054018,2496.2,2496.0,4.00632978]
[1750435117043,0.7895,2496.0,2495.7,4.00680068]
[1750435117190,6.8312,2495.9,2495.8,4.00672461]
[1750435117390,6.77,2495.9,2495.7,4.0068206]
[1750435117619,10.0,2495.8,2495.7,4.00689185]
[1750435117821,10.0612,2495.8,2495.7,4.00689185]
[1750435118593,0.0588,2495.7,2495.3,0.7696]
[1750435118794,6.77,2495.7,2495.6,4.00705241]
[1750435119035,16.8288,2495.7,2495.6,4.00705241]
[1750435120567,16.8288,2495.7,2495.1,4.00773045]
[1750435120568,0.0588,2495.4,2495.1,4.00773045]
[1750435120842,10.0588,2495.2,2495.1,4.00785539]
[1750435120991,6.769,2495.2,2495.1,4.00785539]
[1750435121196,0.0588,2495.4,2495.3,4.00753416]
[1750435121417,6.8278,2495.4,2495.3,4.00753416]
[1750435121822,0.0588,2495.4,2495.3,4.00753416]
[1750435122094,10.0588,2495.7,2495.6,4.0068934]
[1750435122430,0.0588,2496.0,2495.9,4.00657077]
[1750435122619,7.42427191,2496.0,2495.9,4.00657077]
[1750435123127,7.4242837,2496.0,2495.9,4.00657077]
[1750435123330,7.3654837,2496.0,2495.8,4.00666081]
[1750435123517,0.43160019,2495.9,2495.8,4.00666081]
[1750435124126,0.43156702,2495.9,2495.8,4.00666081]
[1750435124434,0.0588,2495.8,2495.7,4.00687999]
[1750435124643,16.8288,2495.8,2495.7,4.00687999]
[1750435125315,0.0588,2495.7,2495.6,4.00703814]
[1750435125716,0.8328,2495.7,2495.6,4.00703814]
[1750435126130,0.774,2495.7,2495.5,4.00716035]
[1750435126336,16.8278,2495.6,2495.5,4.00721298]
[1750435127418,10.0588,2495.5,2495.1,0.7522]
[1750435127627,16.8278,2495.4,2495.3,4.00740225]
[1750435128556,10.0588,2495.3,2495.2,4.00758874]
[1750435128757,0.0588,2495.2,2494.3,4.82163035]
[1750435128910,0.0588,2495.2,2495.1,4.00785539]
[1750435129119,0.0588,2495.2,2494.9,4.00805103]
[1750435129120,0.0588,2495.0,2494.9,4.00805103]
[1750435129308,16.769,2495.0,2494.9,4.77575103]
[1750435129612,10.0,2495.0,2494.9,4.77575103]
[1750435129814,10.0,2495.0,2494.9,5.65415644]
[1750435130008,6.769,2495.3,2495.2,4.00766056]
[1750435130336,16.769,2495.3,2495.2,4.00766056]
[1750435130864,16.8278,2495.3,2495.2,4.00766056]
[1750435132752,16.769,2495.3,2495.2,4.00766056]
[1750435133559,16.8278,2495.3,2495.2,4.00766056]
[1750435136857,16.768,2495.3,2495.2,4.00766056]
[1750435137013,10.0,2495.3,2495.2,4.00766056]
[1750435140263,10.0588,2495.7,2495.6,4.00695785]
[1750435140458,10.887,2495.8,2495.7,4.00689185]
[1750435140759,17.654,2495.8,2495.7,4.00689185]
[1750435141330,18.02656524,2495.8,2495.7,4.00689185]
[1750435141529,20.08697071,2496.0,2495.9,4.00657077]
[1750435141835,17.82767131,2496.0,2495.9,4.00657077]
[1750435142027,17.82768318,2496.0,2495.9,4.00657077]
[1750435142231,17.82768335,2496.0,2495.9,4.00657077]
[1750435142420,0.0588,2495.8,2495.7,4.0068098]
[1750435142627,6.8258,2495.8,2495.7,4.0068098]
[1750435143242,6.8258,2495.8,2494.9,0.7959]
[1750435143243,0.0588,2495.5,2494.9,0.7959]
[1750435143447,9.70369963,2495.1,2495.0,4.00801603]
[1750435143646,26.46969963,2495.1,2495.0,4.00801603]
[1750435143858,10.0,2495.0,2494.9,4.00809504]
[1750435144033,10.0588,2495.0,2494.9,4.00809504]
[1750435145120,0.0588,2494.9,2494.8,4.00824665]
[1750435145458,6.8248,2494.9,2494.8,4.00824665]
[1750435148063,6.766,2494.9,2494.8,4.00824665]
[1750435148359,0.892,2495.2,2494.8,4.00824665]
[1750435148541,10.0588,2495.2,2495.1,4.00785539]
[1750435148732,0.7778,2495.5,2495.0,4.00798152]
[1750435148733,12.6686,2495.5,2495.4,4.00737356]
[1750435148935,0.0618,2495.4,2495.1,4.00769852]
[1750435149133,6.8268,2495.3,2495.2,4.007627]
[1750435150137,0.0618,2495.5,2495.4,4.00737356]
[1750435150331,0.37347606,2495.5,2495.4,4.00737356]
[1750435150531,6.765,2495.8,2495.7,4.00681359]
[1750435150736,10.0,2495.7,2495.6,4.00704095]
[1750435151059,10.0618,2495.7,2495.6,4.00704095]
[1750435151264,10.0,2495.7,2495.6,4.00704095]
[1750435152138,10.0618,2495.7,2495.6,4.00704095]
[1750435154960,0.0618,2495.9,2495.7,4.00674644]
[1750435155173,0.37336424,2496.0,2495.8,4.0067313]
[1750435155477,17.13736098,2495.9,2495.8,4.00665467]
[1750435155673,16.8258,2495.9,2495.8,4.00665467]
[1750435155985,0.0618,2495.8,2495.6,4.00694598]
[1750435156208,0.0618,2495.8,2495.7,4.00680653]
[1750435160294,16.8258,2495.9,2495.2,0.7656]
[1750435160479,16.8258,2495.9,2495.8,4.0067313]
[1750435163111,16.761,2495.9,2495.8,4.0067313]
[1750435163318,16.8228,2495.9,2495.8,4.0067313]
[1750435165497,16.761,2495.9,2495.8,4.0067313]
[1750435165699,16.8228,2495.9,2495.8,4.0067313]
[1750435167539,16.8228,2495.9,2495.3,4.94277258]
[1750435167719,9.6413896,2495.8,2495.7,4.00689185]
[1750435167920,9.7031896,2495.8,2495.7,4.00689185]
[1750435169324,0.0618,2495.8,2495.7,4.00689185]
[1750435169530,16.761,2495.9,2495.8,4.0067313]
[1750435169717,16.759,2495.9,2495.8,4.0067313]
[1750435170355,16.758,2495.9,2495.8,4.0067313]
[1750435170811,16.8198,2495.9,2495.8,4.0067313]
[1750435171743,16.758,2495.9,2495.8,4.0067313]
[1750435172921,16.8198,2495.9,2495.8,4.0067313]
[1750435173926,26.4611896,2495.9,2495.8,4.0067313]
[1750435176171,16.8198,2495.9,2495.8,4.0067313]
[1750435177636,16.755,2495.9,2495.8,4.0067313]
[1750435178093,10.0,2495.9,2495.8,5.55869362]
[1750435178466,0.0618,2496.2,2496.1,4.00624974]
[1750435178636,6.8158,2496.2,2496.1,4.00624974]
[1750435178841,10.0,2496.2,2496.1,4.00624974]
[1750435185084,10.38,2496.8,2496.0,4.00637191]
[1750435185085,0.7757,2496.9,2496.8,4.00512656]
[1750435185375,10.0612,2496.8,2496.7,4.00515471]
[1750435186175,0.0612,2496.7,2496.6,4.00538418]
[1750435186338,26.4535896,2496.7,2496.6,4.00538418]
[1750435186970,26.4535896,2496.7,2496.1,0.774]
[1750435186971,0.0612,2496.6,2496.1,4.78023658]
[1750435187172,26.4525896,2496.5,2496.4,4.0057683]
[1750435187585,10.7671,2496.4,2495.9,0.8073]
[1750435187789,9.6413896,2496.0,2495.9,4.00657077]
[1750435188076,26.4525896,2496.0,2495.9,4.00657077]
[1750435189382,26.4325896,2496.0,2495.9,4.00657077]
[1750435191376,26.4325896,2496.0,2495.8,4.00660568]
[1750435191582,27.1839896,2496.0,2495.9,4.00657077]
[1750435191983,27.1839896,2496.0,2495.7,4.00682208]
[1750435191984,0.0612,2495.9,2495.7,4.00682208]
[1750435192136,26.3893896,2495.8,2495.7,4.00682208]
[1750435192479,26.4505896,2495.8,2495.7,4.00682208]
[1750435197681,16.8092,2495.8,2495.7,4.00682208]
[1750435198052,10.0,2495.8,2495.7,4.80820953]
[1750435198253,10.0,2495.8,2495.7,5.63830953]
[1750435200587,4.229,2496.6,2495.7,5.63830953]
[1750435200588,4.219,2497.9,2495.7,5.67837654]
[1750435200892,10.0,2496.3,2495.7,1.67155446]
[1750435201040,10.0,2496.1,2495.8,0.56786069]
[1750435201363,10.0,2495.9,2495.8,0.56786069]
[1750435201546,10.0,2495.9,2495.6,0.04006356]
[1750435201746,10.0,2495.9,2495.8,4.00670207]
[1750435204997,0.0612,2496.1,2496.0,4.00641025]
[1750435205291,0.0612,2496.0,2495.9,4.00657077]
[1750435205645,0.0612,2496.0,2495.7,4.00676761]
[1750435205846,0.0612,2495.8,2495.7,4.89007234]
[1750435206388,0.0612,2495.8,2495.7,0.883192]
[1750435206546,0.0612,2495.8,2495.7,4.00689185]
[1750435206750,10.0612,2495.8,2495.7,4.00689185]
[1750435206983,10.0,2495.8,2495.7,4.00689185]
[1750435207684,10.0612,2495.8,2495.7,4.00689185]
[1750435208272,10.0,2495.8,2495.7,4.00689185]
[1750435209264,0.0608,2495.7,2495.2,0.7972]
[1750435209477,6.8018,2495.6,2495.5,4.00721298]
[1750435210290,16.4431896,2495.6,2495.5,4.00721298]
[1750435210454,10.0,2496.1,2495.7,4.00689185]
[1750435210655,10.0,2496.1,2496.0,4.00629108]
[1750435210855,0.0608,2496.3,2496.2,4.00608925]
[1750435211154,6.8018,2496.3,2496.2,4.00608925]
[1750435211789,6.8008,2496.3,2496.2,4.00608925]
[1750435212295,0.0608,2496.3,2496.2,4.00608925]
[1750435212612,6.8008,2496.3,2496.2,4.00608925]
[1750435213699,6.8008,2496.3,2496.1,4.00621344]
[1750435213700,0.8205,2496.5,2496.4,4.0057683]
[1750435213998,17.39839777,2496.5,2496.4,4.0057683]
[1750435214200,0.0608,2496.4,2496.3,4.00585264]
[1750435215066,0.43444184,2496.4,2496.3,4.00585264]
[1750435215405,0.0608,2496.4,2496.3,4.00585264]
[1750435215564,16.74,2496.5,2496.4,4.0057683]
[1750435215896,17.39844867,2496.5,2496.4,4.0057683]
[1750435216102,10.59764867,2496.5,2496.4,4.80693039]
[1750435216310,10.0,2496.5,2496.4,4.80693039]
[1750435216506,16.739,2496.5,2496.4,4.80693039]
[1750435217102,10.0,2496.5,2496.4,4.80693039]
[1750435217817,10.0608,2496.5,2496.4,4.80693039]
[1750435218188,10.0608,2496.5,2496.4,4.0057683]
[1750435218815,18.71398486,2496.9,2496.0,4.00638767]
[1750435218816,8.7294,2497.3,2496.5,0.7599]
[1750435219028,0.0608,2497.1,2497.0,4.004679]
[1750435219171,10.43385922,2497.1,2497.0,4.004679]
[1750435219824,10.6576987,2497.1,2497.0,4.004679]
[1750435220125,2.6268,2497.5,2497.4,4.00416433]
[1750435220292,0.22385788,2497.5,2497.4,4.00416433]
[1750435220494,40.65775137,2497.7,2497.5,4.00399755]
[1750435220693,0.0608,2497.5,2497.2,4.00437118]
[1750435221014,0.0608,2497.3,2497.2,4.00437118]
[1750435221318,16.7978,2497.4,2497.3,4.00432312]
[1750435221700,10.0,2497.3,2497.2,4.00439244]
[1750435221875,0.0608,2497.3,2497.1,4.00462359]
[1750435222303,0.0608,2497.0,2496.6,0.8063]
[1750435222481,0.0608,2497.0,2496.9,4.00496615]
[1750435222816,16.7968,2497.0,2496.9,4.00496615]
[1750435223513,10.0608,2496.9,2495.8,4.00665331]
[1750435223709,0.0608,2496.6,2496.3,4.00582831]
[1750435224015,10.0,2496.5,2496.4,4.00566577]
[1750435224199,10.0,2496.5,2496.4,4.81296577]
[1750435224741,6.735,2497.0,2496.9,4.00496615]
[1750435224879,7.19278413,2497.2,2497.1,4.00464538]
[1750435225074,16.7958,2497.2,2497.1,4.00464538]
[1750435225279,10.0,2497.1,2496.9,4.00488171]
[1750435225482,6.7958,2497.0,2496.9,4.00488887]
[1750435226014,0.0608,2496.9,2496.7,4.00517908]
[1750435226216,6.735,2497.0,2496.7,4.00517908]
[1750435226419,0.0608,2496.9,2496.8,4.00512656]
[1750435226580,6.7958,2497.0,2496.9,4.00496615]
[1750435228281,6.735,2497.0,2496.9,4.00496615]
[1750435228588,0.39778579,2497.2,2497.0,4.00470961]
[1750435228912,6.733,2497.1,2497.0,4.00470961]
[1750435229252,6.733,2497.1,2496.9,4.00488182]
[1750435229514,0.0608,2497.0,2496.8,4.0050907]
[1750435229723,0.7659,2497.3,2496.9,4.00496615]
[1750435229931,10.0,2497.0,2496.5,4.0055464]
[1750435230077,0.0608,2496.8,2496.2,0.7591]
[1750435230283,6.733,2496.7,2496.3,4.04598358]
[1750435230485,6.7938,2496.7,2496.6,4.0054474]
[1750435230982,10.0,2496.6,2496.2,0.7591]
[1750435231316,0.0608,2496.3,2495.8,0.8017]
[1750435231516,16.732,2496.2,2496.1,4.00624974]
[1750435231819,16.732,2496.2,2495.6,0.7515]
[1750435231820,17.5538,2496.2,2495.6,0.7515]
[1750435231994,0.0608,2496.1,2495.8,4.00664037]
[1750435232194,31.3708325,2496.2,2495.8,4.00664037]
[1750435232393,0.0608,2496.1,2495.8,4.00664037]
[1750435232595,0.0608,2496.1,2495.9,4.00644018]
[1750435232800,17.493,2496.2,2495.9,4.00644018]
[1750435233091,6.7928,2496.1,2496.0,4.00641025]
[1750435233496,10.0,2496.0,2495.9,4.00649952]
[1750435233731,10.0608,2496.0,2495.9,4.00649952]
[1750435234101,0.0608,2495.9,2495.8,4.00667413]
[1750435234301,6.7928,2495.9,2495.8,4.00667413]
[1750435234623,6.7928,2495.9,2495.7,4.00684536]
[1750435234624,0.0608,2495.8,2495.7,4.00680554]
[1750435234843,6.732,2495.9,2495.8,4.0067313]
[1750435234844,6.7928,2495.9,2495.8,4.0067313]
[1750435235205,6.732,2495.9,2495.8,4.80808498]
[1750435235926,6.732,2496.2,2495.8,0.80135368]
[1750435236107,0.0608,2496.1,2495.9,4.00645649]
[1750435236314,0.0608,2496.1,2496.0,4.00631155]
[1750435236840,6.732,2496.2,2496.1,4.00624974]
[1750435237043,0.0608,2496.5,2496.4,4.0057683]
[1750435237348,6.731,2496.5,2496.2,4.00601122]
[1750435237497,0.0608,2496.4,2496.2,4.00606735]
[1750435237843,15.03017817,2496.5,2496.2,4.00606735]
[1750435238141,6.7928,2496.4,2496.3,4.00591612]
[1750435238339,0.7871,2496.6,2496.5,4.00560785]
[1750435238539,7.5752,2496.6,2496.5,4.80674247]
[1750435238839,7.5752,2496.6,2496.5,4.00560785]
[1750435239039,0.0571,2496.5,2496.4,4.00569786]
[1750435239241,0.0571,2496.5,2496.3,4.00586417]
[1750435239441,0.0571,2496.5,2496.3,4.00582217]
[1750435239603,0.0571,2496.5,2496.4,4.00576585]
[1750435240222,6.7881,2496.5,2496.4,4.00576585]
[1750435241162,6.731,2496.5,2496.2,4.00602541]
[1750435241348,0.0571,2496.4,2495.8,5.8176265]
[1750435241550,6.731,2496.5,2496.2,4.00600968]
[1750435241755,0.8247,2496.3,2495.3,0.0571]
[1750435242070,6.731,2496.2,2496.0,4.00633826]
[1750435242229,0.7653,2496.6,2496.0,4.00641025]
[1750435242430,10.0,2496.4,2496.3,4.00585911]
[1750435242871,10.0,2496.4,2495.8,0.8294]
[1750435243043,10.0,2496.4,2496.2,4.0060176]
[1750435243569,10.0,2496.4,2496.1,4.00618252]
[1750435243727,10.0,2496.4,2496.2,4.00607886]
[1750435243932,0.0571,2496.3,2496.2,4.00607886]
[1750435244171,6.7871,2496.3,2496.2,4.00607886]
[1750435244344,6.73,2496.3,2496.2,4.00607886]
[1750435244532,0.0571,2496.5,2496.4,4.0057683]
[1750435244730,6.7871,2496.5,2496.4,4.0057683]
[1750435244965,6.7871,2496.5,2496.3,4.00585208]
[1750435245548,6.73,2496.5,2496.4,4.0057683]
[1750435247571,17.12397534,2496.8,2496.5,4.00554879]
[1750435247878,17.12397534,2496.8,2496.7,4.00528697]
[1750435247879,10.39397534,2496.8,2496.7,4.00528697]
[1750435248079,7.97,2496.9,2496.8,4.77032656]
[1750435248279,17.97,2496.9,2496.8,4.77032656]
[1750435248950,7.97,2496.9,2496.8,4.77032656]
[1750435249406,10.0,2497.0,2496.9,4.00496615]
[1750435249559,11.806,2497.3,2497.2,4.00448502]
[1750435249760,10.39102404,2497.3,2497.2,4.00448502]
[1750435249970,17.17712404,2497.3,2497.2,4.00448502]
[1750435250170,17.17712404,2497.3,2496.9,4.00490814]
[1750435250403,17.12002404,2497.3,2497.0,4.00471532]
[1750435250604,0.0571,2497.2,2496.9,4.00488289]
[1750435250771,0.0571,2497.2,2497.0,4.00478801]
[1750435251180,0.0571,2497.2,2497.1,4.00464538]
[1750435251371,17.17712404,2497.3,2497.2,4.00448502]
[1750435251571,17.12002404,2497.3,2496.8,4.7703067]
[1750435251806,10.39102404,2497.3,2497.2,4.00448502]
[1750435251982,17.11902404,2497.3,2497.1,4.00457742]
[1750435252187,17.11902404,2497.3,2496.9,4.00489299]
[1750435252406,17.11902404,2497.3,2497.1,4.00462714]
[1750435252611,17.17612404,2497.3,2497.1,4.00462714]
[1750435252770,17.11902404,2497.3,2496.8,0.7652]
[1750435252972,17.11902404,2497.3,2496.8,4.0051142]
[1750435252973,10.0,2497.1,2496.8,4.0051142]
[1750435253170,0.0571,2496.9,2496.8,4.0051142]
[1750435253417,6.728,2497.0,2496.9,4.00496615]
[1750435253792,16.728,2497.0,2496.9,4.00496615]
[1750435254278,16.728,2497.0,2496.9,4.80597419]
[1750435254693,16.728,2497.0,2496.9,5.62467419]
[1750435255117,10.0,2497.0,2496.9,5.68177419]
[1750435255327,10.0,2497.0,2496.9,5.62467419]
[1750435255527,6.727,2497.2,2497.0,4.00480576]
[1750435255834,0.0571,2497.6,2497.5,4.004004]
[1750435256027,6.7841,2497.6,2497.5,4.004004]
[1750435256197,6.727,2497.6,2497.5,4.004004]
[1750435256396,6.727,2497.6,2497.4,4.00416433]
[1750435256595,0.40649819,2497.7,2497.6,4.0038417]
[1750435256795,6.7841,2497.7,2497.6,4.0038417]
[1750435257334,6.727,2497.7,2497.6,4.0038417]
[1750435257502,10.0571,2497.8,2497.7,4.00368338]
[1750435257826,6.726,2497.7,2497.6,4.00375468]
[1750435258202,10.8057,2497.9,2497.3,0.8305]
[1750435258394,0.0571,2497.7,2497.6,4.00376672]
[1750435259033,0.0571,2497.7,2497.3,0.8305]
[1750435259200,20.6038325,2497.8,2497.4,4.00413739]
[1750435259400,10.0,2497.6,2497.4,4.00413739]
[1750435260029,10.0,2497.6,2497.5,4.004004]
[1750435260246,0.39876415,2497.8,2497.5,0.7757]
[1750435260415,10.0,2497.6,2497.3,4.00426268]
[1750435260611,10.0,2497.6,2497.4,4.004079]
[1750435260841,10.0,2497.6,2497.5,4.004004]
[1750435260997,21.50652401,2498.1,2497.5,4.004004]
[1750435260998,3.42699276,2498.1,2497.6,4.00384368]
[1750435261198,3.82920317,2498.1,2497.8,4.00345491]
[1750435261419,10.45931041,2498.1,2497.5,1.65408643]
[1750435261631,10.40221041,2498.1,2497.9,4.00323494]
[1750435261833,10.40221041,2498.1,2497.8,4.00349073]
[1750435262036,10.0,2497.9,2497.7,4.00359391]
[1750435262448,10.0,2497.9,2497.5,0.7757]
[1750435262638,10.0,2497.9,2497.6,4.00376866]
[1750435263027,10.0,2497.9,2497.7,4.00366048]
[1750435263340,0.0571,2498.0,2497.7,4.00360361]
[1750435263507,16.724,2497.8,2497.7,4.00360361]
[1750435264542,16.724,2497.8,2497.5,4.77963186]
[1750435264543,10.0,2497.7,2497.6,4.00375125]
[1750435264839,16.7811,2497.8,2497.5,4.00395082]
[1750435265041,10.0,2497.7,2497.5,4.00395082]
[1750435265537,10.0,2497.7,2497.6,4.00384368]
[1750435265707,10.0,2497.7,2497.3,0.832]
[1750435265708,10.0,2497.7,2497.5,4.00391824]
[1750435265908,10.0,2497.7,2497.4,4.00408071]
[1750435266133,10.0571,2497.7,2497.4,4.00408071]
[1750435266357,10.0,2497.7,2497.6,4.00384368]
[1750435266650,10.0,2497.7,2497.4,4.00407278]
[1750435266857,10.0,2497.7,2497.3,4.83628982]
[1750435266858,16.7801,2497.6,2497.3,4.00426587]
[1750435267034,0.0571,2497.5,2497.3,4.00432464]
[1750435267228,6.722,2497.4,2497.3,4.00432464]
[1750435267646,0.0571,2497.3,2497.2,4.00440826]
[1750435268334,6.722,2497.4,2497.2,4.00440826]
[1750435268524,6.722,2497.4,2497.3,4.00432467]
[1750435268725,6.722,2497.4,2497.2,4.0043874]
[1750435268927,6.7841,2497.4,2497.2,3.0043874]
[1750435269328,6.7841,2497.4,2497.1,4.00455669]
[1750435269520,6.721,2497.6,2497.4,4.00405922]
[1750435269874,6.721,2497.6,2497.5,4.004004]
[1750435270374,6.721,2497.6,2497.3,4.00423412]
[1750435270555,6.721,2497.6,2497.5,4.004004]
[1750435270943,0.0621,2498.0,2497.4,0.7579]
[1750435271125,1.49256667,2498.3,2497.9,0.7579]
[1750435271324,7.44976667,2498.3,2497.9,0.7579]
[1750435271529,7.44976667,2498.3,2498.1,4.0029583]
[1750435271829,16.721,2498.2,2498.1,4.0029583]
[1750435273226,10.0,2498.1,2497.9,0.7579]